bitfinex-derivatives/quotes_ETHF0:USTF0_20240915
["timestamp","ask_amount","ask_price","bid_price","bid_amount"]
[1726387185537,0.4046,2423.6,2423.3,2.07635]
[1726387185740,0.4046,2423.6,2423.4,0.95637619]
[1726387186043,0.4046,2423.6,2423.3,2.07635]
[1726387186238,0.4046,2423.6,2423.4,0.95635581]
[1726387186443,0.4046,2423.6,2423.5,0.391]
[1726387186640,0.4046,2423.6,2423.5,2.07349619]
[1726387186842,0.4046,2423.6,2423.5,2.53733371]
[1726387188143,4.07021187,2423.7,2423.5,2.53731826]
[1726387188340,4.07021187,2423.7,2423.5,2.04483624]
[1726387188645,4.07021187,2423.7,2423.5,1.581]
[1726387188941,0.82128,2423.7,2423.5,1.581]
[1726387189250,0.82128,2423.7,2423.6,0.3875]
[1726387191043,7.72471187,2423.8,2423.6,0.3875]
[1726387193048,7.72471187,2423.8,2423.6,0.7867]
[1726387195146,7.35221187,2423.8,2423.6,0.7867]
[1726387195947,4.14441187,2423.8,2423.6,0.7867]
[1726387196346,7.35221187,2423.8,2423.6,0.7867]
[1726387198147,6.93973187,2423.8,2423.6,0.7867]
[1726387198346,0.096,2423.8,2423.7,1.60248]
[1726387198546,0.096,2423.8,2423.7,1.19]
[1726387198947,0.096,2423.8,2423.7,1.68236213]
[1726387199253,0.096,2423.8,2423.7,2.14609722]
[1726387199864,0.096,2423.8,2423.7,0.95609722]
[1726387200065,0.096,2423.8,2423.7,0.46373509]
[1726387200560,0.096,2423.8,2423.6,0.7867]
[1726387200761,0.096,2423.8,2423.7,0.49236617]
[1726387201159,0.096,2423.8,2423.7,0.95610963]
[1726387201660,0.096,2423.8,2423.7,0.95610072]
[1726387201860,0.096,2423.8,2423.7,0.46374346]
[1726387202068,0.096,2423.8,2423.6,0.7867]
[1726387202958,2.70574501,2423.7,2423.6,0.7867]
[1726387203155,3.84389401,2424.0,2423.6,1.27981887]
[1726387203456,7.05169401,2424.0,2423.7,0.49311887]
[1726387203660,0.41245,2423.9,2423.7,0.46373644]
[1726387203864,6.867549,2424.0,2423.8,0.7644]
[1726387204056,3.2078,2424.0,2423.9,0.3837]
[1726387205365,3.2078,2424.0,2423.9,1.34028562]
[1726387206160,3.2078,2424.0,2423.9,0.84731143]
[1726387206452,3.2078,2424.0,2423.9,1.34026768]
[1726387207180,3.2078,2424.0,2423.9,0.3837]
[1726387207480,5.37035867,2424.0,2423.9,0.3837]
[1726387208767,3.2078,2424.0,2423.9,0.3837]
[1726387208979,3.2078,2424.0,2423.9,0.84727586]
[1726387209178,3.2078,2424.0,2423.9,0.3837]
[1726387210277,4.82895996,2424.0,2423.9,0.3837]
[1726387210472,1.62115996,2424.0,2423.9,0.3837]
[1726387210773,1.62115996,2424.0,2423.9,1.5737]
[1726387221987,1.62115996,2424.0,2423.9,1.98615]
[1726387223790,1.07999728,2424.0,2423.9,1.98615]
[1726387234891,1.0803475,2424.0,2423.9,1.98615]
[1726387235284,1.62115996,2424.1,2423.9,1.98615]
[1726387235484,1.62115996,2424.0,2423.9,1.98615]
[1726387236291,1.62115996,2424.0,2423.9,2.44967088]
[1726387236496,1.62115996,2424.0,2423.9,1.98615]
[1726387236687,1.62115996,2424.0,2423.9,2.44967127]
[1726387238296,1.62115996,2424.0,2423.9,2.94253943]
[1726387238886,1.62115996,2424.0,2423.9,2.44967127]
[1726387239087,1.62115996,2424.0,2423.9,2.94254166]
[1726387240299,1.62115996,2424.0,2423.9,7.06814166]
[1726387240487,1.62115996,2424.0,2423.9,10.27594166]
[1726387241690,1.62115996,2424.0,2423.9,11.35632031]
[1726387241892,1.62115996,2424.0,2423.9,11.68542882]
[1726387242093,1.62115996,2424.1,2424.0,0.41243]
[1726387242303,1.62115996,2424.1,2424.0,2.55882166]
[1726387242605,2.25855867,2424.2,2424.0,2.55882166]
[1726387242900,2.25855867,2424.2,2424.1,0.8706642]
[1726387244002,2.25855867,2424.2,2423.9,2.65407865]
[1726387244003,0.096,2424.2,2423.9,2.65407865]
[1726387244296,1.62226994,2424.0,2423.9,2.65407865]
[1726387244696,1.62226994,2424.0,2423.9,3.88851894]
[1726387245002,1.62226994,2424.0,2423.9,4.35201019]
[1726387245996,1.62226994,2424.0,2423.9,3.61041102]
[1726387246895,2.54572659,2424.1,2423.9,3.61041102]
[1726387247097,2.54572659,2424.1,2424.0,0.95633237]
[1726387249199,0.3827,2424.1,2424.0,0.95633237]
[1726387251004,0.3827,2424.1,2423.9,1.5737]
[1726387251306,0.3827,2424.1,2424.0,0.49286924]
[1726387251509,0.3827,2424.1,2424.0,0.95638948]
[1726387252007,3.08897387,2424.1,2424.0,0.95638948]
[1726387254910,3.08897387,2424.1,2423.9,3.0359412]
[1726387255102,3.08897387,2424.1,2424.0,0.4928676]
[1726387255505,3.08897387,2424.1,2424.0,0.95638644]
[1726387255905,3.08897387,2424.1,2424.0,0.95637935]
[1726387258105,3.08897387,2424.1,2424.0,0.46351884]
[1726387258408,3.08897387,2424.1,2424.0,0.95637473]
[1726387260114,3.08897387,2424.1,2424.0,0.4635134]
[1726387260713,3.08897387,2424.1,2423.9,3.0359412]
[1726387260906,3.08897387,2424.1,2424.0,0.46352141]
[1726387262615,3.08897387,2424.1,2423.9,3.0359412]
[1726387263324,2.70627387,2424.1,2424.0,1.65351973]
[1726387263709,2.70627387,2424.1,2424.0,2.11703807]
[1726387264109,2.70627387,2424.1,2424.0,2.39512821]
[1726387264318,2.70627387,2424.1,2424.0,2.39511976]
[1726387265313,2.70627387,2424.1,2424.0,1.19]
[1726387274721,3.11869387,2424.1,2424.0,1.19]
[1726387278730,2.70627387,2424.1,2424.0,1.19]
[1726387280325,2.70627387,2424.1,2424.0,1.6828888]
[1726387280532,2.70627387,2424.1,2424.0,2.14642668]
[1726387282638,2.70627387,2424.1,2424.0,2.14642618]
[1726387284240,2.70627387,2424.1,2424.0,2.14642602]
[1726387284931,2.70627387,2424.1,2424.0,2.14642299]
[1726387285432,2.70627387,2424.1,2424.0,0.95642299]
[1726387285433,0.41242,2424.1,2424.0,0.95642299]
[1726387285736,0.80162,2424.1,2424.0,0.46353722]
[1726387285936,0.3892,2424.1,2424.0,0.46353722]
[1726387286135,3.75593864,2424.2,2424.0,0.46353722]
[1726387286328,0.50841,2424.2,2423.9,0.7659]
[1726387286529,0.50841,2424.2,2424.0,0.46358806]
[1726387286740,0.50841,2424.2,2423.9,0.7659]
[1726387286943,2.70663185,2424.0,2423.9,0.7659]
[1726387287129,2.70663185,2424.0,2423.9,1.25884547]
[1726387287437,2.70663185,2424.0,2423.9,2.46415735]
[1726387288330,2.70663185,2424.0,2423.9,2.46415403]
[1726387290533,2.70663185,2424.0,2423.9,2.46414537]
[1726387291346,2.70663185,2424.0,2423.9,3.54418657]
[1726387291940,2.70663185,2424.0,2423.9,3.05124976]
[1726387292529,2.70663185,2424.0,2423.9,2.30952269]
[1726387292737,2.70663185,2424.0,2423.9,2.33886122]
[1726387293134,2.70663185,2424.0,2423.9,2.80241414]
[1726387293542,2.70663185,2424.0,2423.9,3.54409881]
[1726387293930,2.70663185,2424.0,2423.9,3.95654881]
[1726387294244,2.70663185,2424.1,2423.9,3.95654131]
[1726387294442,2.7066797,2424.1,2424.0,0.95646544]
[1726387295139,0.50841,2424.2,2424.0,0.95646544]
[1726387295343,0.50841,2424.2,2424.1,0.46355292]
[1726387295942,0.096,2424.2,2424.1,0.46355292]
[1726387300147,0.096,2424.2,2423.9,2.2583912]
[1726387300338,2.70672982,2424.0,2423.9,2.2583912]
[1726387300538,2.70672982,2424.0,2423.9,2.75128484]
[1726387300939,2.70672982,2424.0,2423.9,3.95650484]
[1726387304047,2.70672982,2424.0,2423.9,2.46401364]
[1726387306741,2.70672982,2424.0,2423.9,1.72234802]
[1726387307140,0.3785,2424.1,2423.9,0.7659]
[1726387307341,2.70661924,2424.0,2423.9,1.25885631]
[1726387307551,2.70661924,2424.0,2423.9,1.72244924]
[1726387311349,2.70661924,2424.0,2423.9,0.7659]
[1726387311549,2.70661924,2424.0,2423.9,1.72245478]
[1726387311749,2.70661924,2424.0,2423.9,2.18605062]
[1726387311949,2.70661924,2424.0,2423.9,2.18605228]
[1726387314056,2.70661924,2424.0,2423.9,1.72245636]
[1726387314549,2.70661924,2424.0,2423.9,1.25886805]
[1726387314850,2.70661924,2424.0,2423.9,1.72247157]
[1726387317151,2.70661924,2424.0,2423.9,1.72247007]
[1726387318243,2.70661924,2424.0,2423.9,1.72246303]
[1726387318446,2.70661924,2424.0,2423.9,1.72245708]
[1726387321643,2.70661924,2424.0,2423.9,1.72245285]
[1726387324363,2.70661924,2424.0,2423.9,1.97121377]
[1726387324549,2.70661924,2424.0,2423.9,2.46413345]
[1726387325058,2.70661924,2424.0,2423.9,1.72241162]
[1726387325248,2.70661924,2424.0,2423.9,2.46413969]
[1726387325655,2.70661924,2424.0,2423.9,0.7659]
[1726387325855,2.70661924,2424.0,2423.9,1.25883553]
[1726387326054,2.70661924,2424.0,2423.9,2.4641337]
[1726387328359,2.70661924,2424.0,2423.9,2.46414227]
[1726387331755,2.70661924,2424.0,2423.9,1.97120447]
[1726387331956,2.70661924,2424.0,2423.9,2.46404305]
[1726387332756,2.70661924,2424.0,2423.9,1.72222134]
[1726387332959,2.70661924,2424.0,2423.9,2.46373748]
[1726387335457,2.70661924,2424.0,2423.9,2.46374453]
[1726387336363,2.70661924,2424.0,2423.9,1.72219517]
[1726387336564,2.70661924,2424.0,2423.9,2.46375285]
[1726387337874,2.70661924,2424.0,2423.9,2.46375386]
[1726387339572,2.70661924,2424.0,2423.9,2.46375444]
[1726387342459,2.70661924,2424.0,2423.9,1.25873147]
[1726387342660,2.70661924,2424.0,2423.9,1.72220903]
[1726387342866,2.70661924,2424.0,2423.9,2.46377358]
[1726387343270,5.91441924,2424.0,2423.9,2.46377358]
[1726387343862,5.91441924,2424.0,2423.9,2.46377185]
[1726387344575,2.70661924,2424.0,2423.9,2.46377185]
[1726387344768,5.91441924,2424.0,2423.9,2.46377185]
[1726387345979,2.70661924,2424.0,2423.9,3.05098286]
[1726387346166,2.70661924,2424.0,2423.9,3.54375738]
[1726387347373,2.70661924,2424.0,2423.9,3.95620738]
[1726387347568,2.70661924,2424.1,2423.9,3.95620738]
[1726387347873,2.70661924,2424.1,2424.0,0.95627689]
[1726387348379,2.70661924,2424.1,2424.0,1.69775964]
[1726387349376,2.70661924,2424.1,2424.0,1.69736979]
[1726387350268,2.70661924,2424.1,2424.0,0.95602428]
[1726387350467,2.70661924,2424.1,2424.0,1.69736856]
[1726387351270,2.70661924,2424.1,2424.0,0.95602428]
[1726387352074,2.70661924,2424.1,2424.0,1.69735176]
[1726387352280,2.70661924,2424.1,2424.0,0.95602428]
[1726387352576,2.70661924,2424.1,2424.0,1.69735051]
[1726387352780,2.70661924,2424.1,2424.0,1.69732448]
[1726387353179,2.70661924,2424.1,2424.0,0.49266867]
[1726387353369,2.70661924,2424.1,2424.0,1.69732786]
[1726387353572,2.70661924,2424.1,2424.0,0.95600317]
[1726387353970,2.70661924,2424.1,2424.0,0.4633345]
[1726387354292,2.70661924,2424.1,2424.0,0.95600155]
[1726387354771,2.70661924,2424.1,2424.0,1.69732742]
[1726387354973,2.70661924,2424.1,2424.0,0.95600155]
[1726387355884,0.3865,2424.1,2424.0,0.9560421]
[1726387356079,3.09261135,2424.1,2424.0,0.9560421]
[1726387356970,3.09269369,2424.1,2424.0,0.9560421]
[1726387357173,0.3865,2424.1,2424.0,0.9560421]
[1726387357575,3.09270373,2424.1,2424.0,0.9560421]
[1726387357971,0.3865,2424.1,2424.0,0.9560421]
[1726387358172,3.09273589,2424.1,2424.0,0.9560421]
[1726387358368,0.3865,2424.1,2424.0,0.9560421]
[1726387358776,3.3038,2424.2,2424.0,0.9560421]
[1726387358975,3.3038,2424.2,2423.9,0.7659]
[1726387359175,2.70624613,2424.0,2423.9,0.7659]
[1726387359373,2.70624613,2424.0,2423.9,2.46335249]
[1726387360176,2.70624613,2424.0,2423.9,2.87580249]
[1726387360583,2.70624613,2424.1,2423.9,3.95584369]
[1726387360783,0.096,2424.2,2424.0,0.95607123]
[1726387360981,0.096,2424.2,2424.1,0.46336329]
[1726387361281,3.3038,2424.2,2424.1,0.46336528]
[1726387363379,3.3038,2424.2,2423.9,2.2583912]
[1726387363575,2.70646522,2424.0,2423.9,2.2583912]
[1726387363784,2.70646522,2424.0,2423.9,2.75109061]
[1726387364181,2.70646522,2424.0,2423.9,3.95581795]
[1726387364783,2.70646522,2424.0,2423.9,3.95581769]
[1726387366787,2.70646522,2424.0,2423.9,2.2583912]
[1726387367089,2.70646522,2424.0,2423.9,2.75110238]
[1726387367292,2.70646522,2424.0,2423.9,3.95585685]
[1726387370592,2.70646522,2424.0,2423.9,3.95584974]
[1726387374182,2.70646522,2424.0,2423.9,2.2583912]
[1726387374383,2.70646522,2424.0,2423.9,3.49247649]
[1726387374894,2.70646522,2424.0,2423.9,3.95583809]
[1726387377900,2.70646522,2424.0,2423.9,2.75109141]
[1726387378095,2.70646522,2424.0,2423.9,3.95581995]
[1726387380897,2.70646522,2424.0,2423.9,3.9558433]
[1726387381506,2.70646522,2424.0,2423.9,3.5433933]
[1726387382002,2.70646522,2424.0,2423.9,3.9558433]
[1726387383700,2.70646522,2424.0,2423.9,3.46314309]
[1726387384001,2.70646522,2424.0,2423.9,2.75136871]
[1726387384197,2.70646522,2424.0,2423.9,1.8459412]
[1726387384405,2.70646522,2424.0,2423.9,3.54431401]
[1726387384595,2.70646522,2424.0,2423.9,4.7496953]
[1726387384898,2.70646522,2424.0,2423.9,4.74969879]
[1726387385103,2.70646522,2424.0,2423.9,3.54429319]
[1726387385504,2.70646522,2424.0,2423.9,3.95674319]
[1726387389209,2.70646522,2424.0,2423.9,3.54429319]
[1726387389405,3.11889522,2424.0,2423.9,2.77839319]
[1726387389602,4.27929522,2424.0,2423.9,1.69835199]
[1726387389811,3.86686522,2424.0,2423.9,1.69835199]
[1726387390507,9.59489522,2424.0,2423.9,1.69835199]
[1726387390808,9.59489522,2424.0,2423.7,0.096]
[1726387390809,0.41245,2423.9,2423.7,0.096]
[1726387391108,0.41245,2423.9,2423.8,0.95693752]
[1726387391410,0.41245,2423.9,2423.8,0.46378009]
[1726387391601,4.53805,2423.9,2423.8,0.46378009]
[1726387391802,4.53805,2423.9,2423.7,0.096]
[1726387392007,3.11887911,2423.8,2423.7,0.096]
[1726387392211,2.70640911,2423.8,2423.7,1.05297018]
[1726387393113,2.70640911,2423.8,2423.7,1.44907018]
[1726387394200,2.70640911,2423.8,2423.7,0.95589334]
[1726387396324,2.70640911,2423.8,2423.7,0.4921]
[1726387397807,3.11886911,2423.9,2423.7,0.4921]
[1726387398207,2.70640911,2423.8,2423.7,0.4921]
[1726387398616,3.11886911,2423.9,2423.7,0.4921]
[1726387401008,3.11886911,2423.9,2423.7,0.898]
[1726387401208,2.70640911,2423.9,2423.7,0.898]
[1726387401418,2.16312939,2423.8,2423.7,0.898]
[1726387401818,2.16312939,2423.8,2423.7,1.36174831]
[1726387403418,2.16312939,2423.8,2423.7,0.898]
[1726387403610,2.16312939,2423.8,2423.7,1.36175159]
[1726387404221,2.16312939,2423.8,2423.7,0.898]
[1726387404418,2.16312939,2423.8,2423.7,1.36175033]
[1726387404614,2.16312939,2423.8,2423.7,0.898]
[1726387404918,2.16312939,2423.8,2423.7,1.36175071]
[1726387405307,2.16312939,2423.8,2423.7,0.898]
[1726387407213,2.16312939,2423.8,2423.7,2.9642197]
[1726387407414,1.62210595,2423.8,2423.7,10.79071845]
[1726387408422,1.62210595,2423.8,2423.7,7.58291845]
[1726387408718,1.62210595,2423.8,2423.7,8.66295965]
[1726387409315,1.62210595,2423.8,2423.7,7.58291845]
[1726387409620,1.62210595,2423.8,2423.7,8.66295965]
[1726387410322,1.62210595,2423.8,2423.7,12.6126105]
[1726387410621,1.62210595,2423.8,2423.7,9.40481252]
[1726387411418,1.62210595,2423.8,2423.7,7.58291845]
[1726387411819,1.62210595,2423.8,2423.7,8.66295965]
[1726387412020,1.62210595,2423.8,2423.7,5.27920878]
[1726387412217,1.62210595,2423.8,2423.7,4.19916758]
[1726387412415,1.62210595,2423.8,2423.7,4.53728226]
[1726387412612,1.62210595,2423.8,2423.7,5.27904726]
[1726387412917,1.62210595,2423.8,2423.7,9.40464726]
[1726387413906,1.62210595,2423.8,2423.7,5.27904726]
[1726387414111,1.62210595,2423.8,2423.7,4.07354256]
[1726387414310,1.62210595,2423.8,2423.7,5.27902265]
[1726387416322,1.62210595,2423.8,2423.7,4.07354256]
[1726387416718,1.62210595,2423.8,2423.7,5.27904345]
[1726387417422,1.62210595,2423.8,2423.7,5.27903285]
[1726387419527,1.62210595,2423.8,2423.7,3.70597029]
[1726387419821,1.62210595,2423.8,2423.7,2.99352233]
[1726387420123,1.62210595,2423.8,2423.7,4.53723821]
[1726387420317,1.62210595,2423.8,2423.7,4.19906206]
[1726387420517,1.62210595,2423.8,2423.7,4.53723821]
[1726387420718,1.62210595,2423.8,2423.7,4.19906377]
[1726387421030,1.62210595,2423.8,2423.7,4.19906732]
[1726387421229,1.62210595,2423.8,2423.7,5.27911223]
[1726387421427,1.62210595,2423.8,2423.7,5.27911187]
[1726387421722,1.62210595,2423.8,2423.7,4.53723821]
[1726387421932,1.62210595,2423.8,2423.7,5.2791116]
[1726387422124,1.62210595,2423.8,2423.7,3.45719701]
[1726387422330,1.62210595,2423.8,2423.7,5.27911131]
[1726387422521,1.62210595,2423.8,2423.7,3.45719701]
[1726387422716,1.62210595,2423.8,2423.7,5.27911546]
[1726387423116,2.16312939,2423.9,2423.7,2.96415468]
[1726387423322,1.62243795,2423.8,2423.7,2.99353877]
[1726387423518,2.16312939,2423.9,2423.8,0.49305877]
[1726387423827,2.16312939,2423.9,2423.8,0.95674657]
[1726387424721,2.16312939,2423.9,2423.7,2.50048]
[1726387424722,3.11870911,2423.9,2423.7,0.096]
[1726387424929,3.53115911,2423.9,2423.7,0.096]
[1726387426734,3.11870911,2423.9,2423.7,0.096]
[1726387427030,3.11870911,2423.9,2423.7,0.5073]
[1726387430835,3.53115911,2423.9,2423.7,0.096]
[1726387431434,3.11870911,2423.9,2423.7,0.096]
[1726387431738,2.70640911,2423.8,2423.7,0.096]
[1726387431933,3.11870911,2423.9,2423.7,0.55991546]
[1726387432128,2.70640911,2423.8,2423.7,0.096]
[1726387432324,3.11870911,2423.9,2423.7,0.55991737]
[1726387432528,2.70640911,2423.8,2423.7,0.096]
[1726387432727,2.70640911,2423.8,2423.7,0.55991574]
[1726387432933,3.11870911,2423.9,2423.7,0.55991574]
[1726387433136,3.11870911,2423.9,2423.7,0.096]
[1726387433428,3.53115911,2423.9,2423.7,0.096]
[1726387433635,3.11870911,2423.9,2423.7,0.096]
[1726387434439,2.70640911,2423.8,2423.7,0.096]
[1726387434730,2.70640911,2423.8,2423.7,0.55991165]
[1726387435948,2.70640911,2423.8,2423.7,1.05322071]
[1726387436136,2.70640911,2423.8,2423.7,0.55991165]
[1726387436547,2.70640911,2423.8,2423.7,0.55991947]
[1726387436847,2.70640911,2423.8,2423.7,1.05322548]
[1726387437434,2.70640911,2423.8,2423.7,0.55991947]
[1726387437647,2.70640911,2423.8,2423.7,1.05322194]
[1726387437840,2.70640911,2423.8,2423.7,0.55991947]
[1726387438237,2.70640911,2423.8,2423.7,1.05323233]
[1726387438744,2.70640911,2423.8,2423.7,0.55991947]
[1726387438945,2.70640911,2423.8,2423.7,0.096]
[1726387439336,5.22256,2423.9,2423.7,0.096]
[1726387439941,2.70493633,2423.8,2423.7,0.096]
[1726387440140,3.11740633,2423.8,2423.7,0.096]
[1726387440341,2.70495873,2423.8,2423.7,0.096]
[1726387440543,2.70495371,2423.8,2423.7,0.096]
[1726387440746,5.22256,2423.9,2423.7,0.096]
[1726387441139,0.41247,2423.8,2423.7,0.096]
[1726387441342,7.78559864,2423.8,2423.7,0.096]
[1726387441544,16.98941557,2423.8,2423.7,0.096]
[1726387442641,18.02059557,2423.8,2423.7,0.096]
[1726387442841,18.02059557,2423.8,2423.3,0.096]
[1726387442842,0.41254,2423.4,2423.3,0.096]
[1726387443043,0.41257,2423.2,2423.0,0.4989]
[1726387443338,1.62186043,2423.1,2423.0,0.4029]
[1726387443539,2.57583948,2423.2,2423.0,0.4029]
[1726387444136,1.62183625,2423.1,2423.0,0.4029]
[1726387447143,1.08010948,2423.1,2423.0,0.4029]
[1726387447345,1.08010948,2423.1,2423.0,1.5929]
[1726387451439,1.08010948,2423.2,2423.0,1.5929]
[1726387456459,1.08010948,2423.2,2423.0,2.0055]
[1726387457860,1.08010948,2423.2,2423.0,0.8155]
[1726387459262,1.08010948,2423.2,2423.0,0.4029]
[1726387459458,1.08010948,2423.2,2423.1,0.41259]
[1726387466656,1.08010948,2423.2,2423.0,0.81549]
[1726387468561,1.08010948,2423.1,2423.0,0.81549]
[1726387468767,1.08010948,2423.2,2423.0,0.81549]
[1726387469081,1.08010948,2423.1,2423.0,0.81549]
[1726387477258,2.03440625,2423.2,2423.0,0.81549]
[1726387477458,1.62183625,2423.1,2423.0,0.81549]
[1726387478265,1.08053337,2423.1,2423.0,0.81549]
[1726387478467,2.03440625,2423.2,2423.0,0.81549]
[1726387478664,1.62183625,2423.1,2423.0,0.81549]
[1726387481375,1.62183625,2423.1,2423.0,1.27973673]
[1726387481672,1.62183625,2423.1,2423.0,1.77343529]
[1726387481979,1.62183625,2423.1,2423.0,1.7734328]
[1726387482275,1.62183625,2423.1,2423.0,1.77343968]
[1726387482478,2.16326948,2423.2,2423.0,1.77343968]
[1726387482674,2.16326948,2423.2,2423.0,0.81549]
[1726387482970,1.62236988,2423.1,2423.0,0.81549]
[1726387483179,2.16326948,2423.2,2423.0,1.77342191]
[1726387483367,2.16326948,2423.2,2423.1,0.46423903]
[1726387483569,2.16383897,2423.2,2423.1,0.46423903]
[1726387483862,2.16386496,2423.2,2423.1,0.46423903]
[1726387484275,2.16386496,2423.2,2423.1,0.95793199]
[1726387484470,2.70408685,2423.2,2423.1,0.95793199]
[1726387485379,2.70408685,2423.2,2423.1,0.95794255]
[1726387486266,2.70408685,2423.2,2423.1,1.70071357]
[1726387486475,2.70408685,2423.2,2423.1,0.95794255]
[1726387487371,3.62036,2423.3,2423.1,0.95794255]
[1726387487573,3.62036,2423.3,2423.2,0.95794255]
[1726387489078,3.62036,2423.3,2423.2,0.49365732]
[1726387489473,3.62036,2423.3,2423.2,0.95786038]
[1726387490177,0.41256,2423.3,2423.2,0.95786038]
[1726387490381,3.62036,2423.3,2423.2,0.95786038]
[1726387490569,0.41256,2423.3,2423.2,0.95786038]
[1726387490774,3.62036,2423.3,2423.2,0.95786038]
[1726387495775,4.01086,2423.3,2423.2,0.95786038]
[1726387496169,4.01086,2423.3,2423.2,0.9578896]
[1726387498879,0.80306,2423.3,2423.2,0.9578896]
[1726387499184,4.01086,2423.3,2423.2,0.9578896]
[1726387499581,4.01086,2423.3,2423.0,1.8955312]
[1726387499777,2.70822018,2423.1,2423.0,1.8955312]
[1726387500186,2.70822018,2423.1,2423.0,2.38922539]
[1726387500486,2.70822018,2423.1,2423.0,4.33902414]
[1726387501890,2.70822018,2423.1,2423.0,3.92643414]
[1726387502077,2.70822018,2423.1,2423.0,4.33903414]
[1726387502282,2.70822018,2423.1,2423.0,3.13200234]
[1726387502592,2.70822018,2423.1,2423.0,4.33898847]
[1726387502793,2.70822018,2423.1,2423.0,5.54597267]
[1726387503082,2.70822018,2423.1,2423.0,5.13337267]
[1726387503493,3.62037,2423.2,2423.0,6.77481992]
[1726387503494,6.32859018,2423.2,2423.0,6.77481992]
[1726387503691,6.32859018,2423.2,2423.1,2.78070649]
[1726387504977,5.91602018,2423.2,2423.1,2.78070649]
[1726387505384,5.91602018,2423.2,2423.1,1.70066529]
[1726387505785,2.70822018,2423.2,2423.1,1.70066529]
[1726387506182,5.91602018,2423.2,2423.1,1.70066529]
[1726387507891,5.91602018,2423.2,2423.1,2.78070649]
[1726387508085,3.62037,2423.2,2423.1,0.95790578]
[1726387509385,3.62037,2423.2,2423.0,1.8955412]
[1726387509587,2.70807662,2423.1,2423.0,1.8955412]
[1726387509985,2.70807662,2423.1,2423.0,2.38921963]
[1726387510188,2.70807662,2423.1,2423.0,3.87473733]
[1726387510392,2.70807662,2423.1,2423.0,4.33896151]
[1726387510587,2.70807662,2423.1,2423.0,5.08172074]
[1726387510791,2.70807662,2423.1,2423.0,5.54594526]
[1726387512996,2.70807662,2423.1,2423.0,5.13335262]
[1726387513196,2.70807662,2423.1,2423.0,5.13337017]
[1726387513995,2.70807662,2423.1,2423.0,5.13338536]
[1726387515402,2.70807662,2423.1,2423.0,3.18364348]
[1726387517003,2.70807662,2423.1,2423.0,3.59624348]
[1726387517195,1.62463205,2423.2,2423.1,0.41259]
[1726387517390,2.18337662,2423.4,2423.1,0.41259]
[1726387517391,2.2621421,2423.4,2423.3,0.41255]
[1726387517596,2.1661421,2423.4,2423.3,9.5680641]
[1726387517791,2.1661421,2423.4,2423.3,9.9610641]
[1726387518099,2.1661421,2423.5,2423.3,9.9610641]
[1726387518305,2.1661421,2423.5,2423.4,3.97162848]
[1726387519001,2.1661421,2423.5,2423.4,4.38416848]
[1726387519701,2.1661421,2423.5,2423.4,3.17687083]
[1726387519904,2.1661421,2423.5,2423.4,4.38325428]
[1726387520100,0.096,2423.6,2423.4,3.30232808]
[1726387520101,2.2621421,2423.6,2423.4,3.30232808]
[1726387520404,2.2621421,2423.6,2423.5,0.87150463]
[1726387520599,2.2621421,2423.6,2423.5,1.33550051]
[1726387521001,0.096,2423.6,2423.5,0.84209588]
[1726387521199,0.096,2423.6,2423.5,0.3781]
[1726387521399,2.25932871,2423.6,2423.5,0.3781]
[1726387521598,2.25932871,2423.6,2423.5,0.84210146]
[1726387521798,0.096,2423.6,2423.5,0.3781]
[1726387522207,2.25904752,2423.6,2423.5,0.3781]
[1726387525104,0.096,2423.6,2423.5,0.3781]
[1726387527411,1.71721932,2423.6,2423.5,0.3781]
[1726387527904,0.096,2423.6,2423.5,0.3781]
[1726387529109,1.71700092,2423.6,2423.5,0.3781]
[1726387529810,0.096,2423.6,2423.5,0.3781]
[1726387530009,1.71697298,2423.6,2423.5,0.3781]
[1726387530408,1.71686445,2423.6,2423.5,0.3781]
[1726387531109,0.096,2423.6,2423.5,0.3781]
[1726387531408,1.71679432,2423.6,2423.5,0.3781]
[1726387549227,1.71679432,2423.6,2423.5,0.7684]
[1726387551721,1.71679432,2423.6,2423.5,1.18092]
[1726387552826,1.1765891,2423.6,2423.5,3.32812562]
[1726387553930,1.1765891,2423.6,2423.5,2.37092]
[1726387554131,1.1765891,2423.6,2423.5,2.86423831]
[1726387554329,1.1765891,2423.6,2423.5,3.32815398]
[1726387555034,1.1765891,2423.6,2423.5,3.32817407]
[1726387556736,1.1765891,2423.6,2423.5,3.32831952]
[1726387557234,1.1765891,2423.6,2423.5,2.13831952]
[1726387558237,1.1765891,2423.6,2423.5,1.64483567]
[1726387558430,1.1765891,2423.6,2423.5,1.18092]
[1726387558626,1.1765891,2423.6,2423.5,1.64498588]
[1726387558827,1.1765891,2423.6,2423.5,2.1384603]
[1726387559139,1.1765891,2423.6,2423.5,1.6743951]
[1726387559140,1.71679432,2423.6,2423.5,1.6743951]
[1726387559335,0.096,2423.6,2423.5,2.13846164]
[1726387559642,1.17721152,2423.6,2423.5,2.13846164]
[1726387559938,1.17720846,2423.6,2423.5,3.21938784]
[1726387560137,1.71679432,2423.6,2423.5,3.21938784]
[1726387560339,1.71679432,2423.6,2423.5,3.96189318]
[1726387561036,1.71679432,2423.6,2423.5,3.46841808]
[1726387561342,1.71679432,2423.6,2423.5,2.75532354]
[1726387561529,1.71679432,2423.6,2423.5,2.72591556]
[1726387561727,1.71679432,2423.6,2423.5,3.96190829]
[1726387562242,1.71679432,2423.6,2423.5,5.16849952]
[1726387563134,0.096,2423.6,2423.5,6.39883953]
[1726387563441,0.096,2423.6,2423.5,5.16849952]
[1726387563442,2.25904752,2423.6,2423.5,5.16849952]
[1726387564438,2.25904752,2423.6,2423.5,5.16853252]
[1726387564644,2.25904752,2423.6,2423.5,4.42604523]
[1726387564834,2.25904752,2423.6,2423.5,5.16861154]
[1726387565938,2.25904752,2423.6,2423.5,3.9620312]
[1726387567033,2.25904752,2423.6,2423.5,5.19236835]
[1726387567236,0.096,2423.6,2423.5,5.19236835]
[1726387567438,0.096,2423.6,2423.5,5.1924961]
[1726387567741,0.096,2423.6,2423.5,4.11144215]
[1726387567945,0.096,2423.6,2423.5,5.19249538]
[1726387568137,0.096,2423.6,2423.5,5.19249665]
[1726387568338,0.096,2423.6,2423.5,5.73383268]
[1726387569046,1.71948647,2423.6,2423.5,6.2108197]
[1726387569239,1.71948647,2423.6,2423.5,5.19245555]
[1726387569240,0.096,2423.6,2423.5,5.19245555]
[1726387569746,0.096,2423.6,2423.5,5.73383268]
[1726387571542,0.096,2423.6,2423.5,5.73394426]
[1726387571846,0.096,2423.6,2423.5,5.7342261]
[1726387572049,0.096,2423.6,2423.5,5.24059977]
[1726387572353,0.096,2423.6,2423.5,4.52729485]
[1726387572644,0.096,2423.6,2423.5,5.73428219]